bitfinex/quotes_BTCUSD_20240101
["timestamp","ask_amount","ask_price","bid_price","bid_amount"]
[1704078273854,0.01290297,42628.0,42627.0,1.34733777]
[1704078275948,0.01290297,42628.0,42627.0,0.27925466]
[1704078279579,0.01290297,42628.0,42627.0,0.01623577]
[1704078279580,0.03463144,42628.0,42627.0,0.01623577]
[1704078279803,0.03463144,42628.0,42627.0,0.00913577]
[1704078279804,0.48207797,42628.0,42627.0,0.00913577]
[1704078280247,0.71529508,42628.0,42627.0,0.00913577]
[1704078280451,1.06325508,42628.0,42627.0,0.00513577]
[1704078280676,1.10162485,42628.0,42627.0,0.00113577]
[1704078280890,1.10562485,42628.0,42627.0,0.00213577]
[1704078281159,1.11262485,42628.0,42627.0,0.00213577]
[1704078281369,1.08433898,42628.0,42627.0,0.00213577]
[1704078281588,1.07733898,42628.0,42627.0,0.00213577]
[1704078281799,1.09033898,42628.0,42627.0,0.00213577]
[1704078282010,1.09033898,42628.0,42627.0,0.00113577]
[1704078282011,1.08565609,42628.0,42627.0,0.00113577]
[1704078282218,1.09665609,42628.0,42627.0,0.00113577]
[1704078282428,1.14225609,42628.0,42627.0,0.00113577]
[1704078283511,1.08603219,42628.0,42627.0,0.00113577]
[1704078283754,1.67403509,42628.0,42627.0,0.00113577]
[1704078283970,1.70232096,42628.0,42627.0,0.00113577]
[1704078284417,1.75509707,42628.0,42627.0,0.00113577]
[1704078284629,1.61781119,42628.0,42627.0,0.00113577]
[1704078284838,1.75302023,42628.0,42627.0,0.00113577]
[1704078285272,1.80917367,42628.0,42627.0,0.00113577]
[1704078285717,0.87082367,42628.0,42627.0,0.00113577]
[1704078285932,1.20478963,42628.0,42627.0,0.00113577]
[1704078286139,1.67396463,42628.0,42627.0,0.00113577]
[1704078287449,1.61781119,42628.0,42627.0,0.00113577]
[1704078288753,1.70232096,42628.0,42627.0,0.00113577]
[1704078289436,1.61781119,42628.0,42627.0,0.00113577]
[1704078289649,0.67946119,42628.0,42627.0,0.00113577]
[1704078289867,1.14863619,42628.0,42627.0,0.00113577]
[1704078290314,1.20473018,42628.0,42627.0,0.00113577]
[1704078290742,1.67390518,42628.0,42627.0,0.00113577]
[1704078291377,1.61781119,42628.0,42627.0,0.00113577]
[1704078291561,2.08698619,42628.0,42627.0,0.00113577]
[1704078291777,0.00031711,42622.0,42616.0,0.063336]
[1704078291992,0.79576496,42621.0,42616.0,0.063336]
[1704078292225,0.469296,42617.0,42616.0,0.063336]
[1704078292441,0.70251311,42617.0,42616.0,0.06447177]
[1704078292667,0.70251311,42617.0,42616.0,0.07157177]
[1704078292889,0.70251311,42617.0,42616.0,0.00113577]
[1704078293351,0.23321711,42617.0,42616.0,0.00113577]
[1704078293571,0.70251311,42617.0,42616.0,0.00113577]
[1704078293780,0.85753558,42617.0,42616.0,0.00113577]
[1704078294003,1.30847549,42617.0,42616.0,0.00113577]
[1704078294213,1.80757117,42617.0,42616.0,0.00113577]
[1704078294632,1.80557117,42617.0,42616.0,0.00113577]
[1704078294853,1.80957117,42617.0,42616.0,0.00113577]
[1704078295315,1.82757117,42617.0,42616.0,0.00113577]
[1704078295538,1.80957117,42617.0,42616.0,0.00113577]
[1704078295761,1.82757117,42617.0,42616.0,0.00113577]
[1704078296452,1.84128328,42617.0,42616.0,0.00113577]
[1704078296729,1.67487549,42617.0,42616.0,0.00113577]
[1704078296949,0.00031711,42611.0,42605.0,0.16301889]
[1704078297175,0.23321711,42610.0,42606.0,0.063336]
[1704078297599,0.469402,42608.0,42606.0,0.063336]
[1704078297817,0.23321711,42607.0,42606.0,0.063336]
[1704078298462,0.70262311,42607.0,42606.0,0.063336]
[1704078299297,0.84481191,42607.0,42606.0,0.063336]
[1704078299514,0.85081191,42607.0,42606.0,0.070436]
[1704078299945,0.85081191,42607.0,42605.0,0.16301889]
[1704078300175,0.469417,42606.0,42603.0,0.070436]
[1704078300407,0.38140591,42607.0,42603.0,0.070436]
[1704078300408,0.23321711,42605.0,42604.0,0.0071]
[1704078300614,0.70264511,42605.0,42604.0,0.0071]
[1704078301712,0.70864511,42605.0,42604.0,0.0071]
[1704078301927,0.71064511,42605.0,42604.0,0.0071]
[1704078302146,0.72164511,42605.0,42604.0,0.0071]
[1704078303281,0.71364511,42605.0,42603.0,0.070436]
[1704078303535,0.72664511,42605.0,42603.0,0.070436]
[1704078303953,0.71364511,42605.0,42603.0,0.070436]
[1704078304172,0.72664511,42605.0,42604.0,0.0071]
[1704078304387,0.71564511,42605.0,42603.0,0.063336]
[1704078304624,0.72664511,42605.0,42603.0,0.070436]
[1704078304832,0.70264511,42605.0,42604.0,0.0071]
[1704078305062,0.70264511,42605.0,42603.0,0.063336]
[1704078305063,0.71564511,42605.0,42603.0,0.063336]
[1704078305357,0.72664511,42605.0,42603.0,0.063336]
[1704078305602,0.72664511,42605.0,42601.0,0.2226]
[1704078305603,0.769439,42604.0,42601.0,0.2226]
[1704078305850,0.469461,42602.0,42601.0,0.2226]
[1704078306087,1.00267811,42602.0,42598.0,0.063336]
[1704078306344,1.00269611,42601.0,42598.0,0.284836]
[1704078306562,0.70269611,42601.0,42598.0,0.284836]
[1704078306985,0.469494,42599.0,42598.0,0.2215]
[1704078307197,0.70271111,42599.0,42598.0,0.2215]
[1704078308509,0.71271111,42599.0,42598.0,0.2215]
[1704078308947,0.72071111,42599.0,42598.0,0.2215]
[1704078309158,0.71271111,42599.0,42598.0,0.2215]
[1704078309370,0.72371111,42599.0,42598.0,0.2215]
[1704078310229,0.71371111,42599.0,42598.0,0.2215]
[1704078310442,0.71571111,42599.0,42598.0,0.2215]
[1704078310892,0.71371111,42599.0,42598.0,0.2215]
[1704078311103,0.71371111,42599.0,42598.0,0.2286]
[1704078311323,0.72671111,42599.0,42598.0,0.2286]
[1704078311996,0.90463199,42599.0,42598.0,0.2286]
[1704078313470,0.90463199,42599.0,42598.0,0.2215]
[1704078313883,0.90463199,42599.0,42598.0,0.2286]
[1704078314296,0.90463199,42599.0,42598.0,0.2215]
[1704078321050,0.72671111,42599.0,42598.0,0.2286]
[1704078322451,0.72671111,42599.0,42598.0,0.2215]
[1704078322661,0.72671111,42599.0,42598.0,0.2286]
[1704078324268,0.39290203,42599.0,42598.0,0.2215]
[1704078324701,0.86239603,42599.0,42598.0,0.2286]
[1704078328332,0.86239603,42599.0,42598.0,0.2215]
[1704078329357,0.39290203,42599.0,42598.0,0.2215]
[1704078329538,0.72671111,42599.0,42598.0,0.2286]
[1704078332794,0.25721711,42599.0,42598.0,0.2286]
[1704078333624,0.72671111,42599.0,42598.0,0.2286]
[1704078342551,0.72671111,42599.0,42598.0,0.39161889]
[1704078342552,0.493494,42599.0,42598.0,0.39161889]
[1704078347375,0.493494,42599.0,42598.0,0.39199834]
[1704078347834,0.493494,42599.0,42598.0,0.49199834]
[1704078348037,0.024,42599.0,42598.0,1.02444334]
[1704078348705,0.011,42599.0,42598.0,1.02444334]
[1704078349167,0.469422,42606.0,42605.0,0.16301889]
[1704078349592,0.769422,42606.0,42605.0,0.16301889]
[1704078349832,0.82551599,42606.0,42605.0,0.16301889]
[1704078350040,0.769422,42606.0,42605.0,0.16301889]
[1704078351350,0.777422,42606.0,42605.0,0.16301889]
[1704078351553,0.787422,42606.0,42605.0,0.16301889]
[1704078356794,0.777422,42606.0,42605.0,0.16301889]
[1704078357208,0.779422,42606.0,42605.0,0.16301889]
[1704078357420,0.787422,42606.0,42605.0,0.16301889]
[1704078360646,0.318,42606.0,42605.0,0.16301889]
[1704078360883,0.487422,42606.0,42605.0,0.16301889]
[1704078361101,0.787422,42606.0,42605.0,0.16301889]
[1704078362435,0.787422,42606.0,42605.0,0.16339837]
[1704078366130,0.787422,42606.0,42605.0,0.27049837]
[1704078366131,0.018,42606.0,42605.0,0.27049837]
[1704078366355,0.018,42606.0,42605.0,0.43943837]
[1704078366590,0.018,42606.0,42605.0,0.43943838]
[1704078367322,0.46934,42613.0,42605.0,0.43943838]
[1704078367578,0.16513489,42619.0,42618.0,0.16301889]
[1704078367852,0.14478317,42622.0,42620.0,0.063336]
[1704078368086,0.23321711,42621.0,42620.0,0.06371549]
[1704078368847,0.70246911,42621.0,42620.0,0.06371549]
[1704078370048,1.00246911,42621.0,42620.0,0.06371549]
[1704078370281,1.01646911,42621.0,42620.0,0.06371549]
[1704078370500,1.02846911,42621.0,42620.0,0.06371549]
[1704078372493,0.795252,42621.0,42620.0,0.16339838]
[1704078374970,0.795252,42621.0,42620.0,0.16339837]
[1704078376716,0.795252,42621.0,42620.0,0.27049837]
[1704078376717,0.026,42621.0,42620.0,0.27049837]
[1704078376932,0.026,42621.0,42620.0,0.31795837]
[1704078377158,0.026,42621.0,42620.0,0.27049837]
[1704078377375,0.026,42621.0,42620.0,0.32119837]
[1704078377810,0.012,42621.0,42620.0,0.32119837]
[1704078378672,0.469226,42624.0,42623.0,0.17011889]
[1704078378901,0.2172,42629.0,42623.0,0.17011889]
[1704078378902,0.469185,42628.0,42623.0,0.32041837]
[1704078379131,0.469196,42627.0,42624.0,0.0071]
[1704078379368,0.469196,42627.0,42624.0,0.22707948]
[1704078380537,0.477196,42627.0,42624.0,0.22707948]
[1704078381326,0.477196,42627.0,42624.0,0.22707947]
[1704078381899,0.469196,42627.0,42624.0,0.22707947]
[1704078382398,0.479196,42627.0,42624.0,0.22707947]
[1704078382844,0.487196,42627.0,42624.0,0.22707947]
[1704078384333,0.487196,42627.0,42624.0,0.00747947]
[1704078384553,0.487196,42627.0,42624.0,0.23317947]
[1704078387415,0.018,42627.0,42624.0,0.23317947]
[1704078387640,0.469199,42626.0,42624.0,0.23317947]
[1704078388775,0.475199,42626.0,42624.0,0.23317946]
[1704078388995,0.484199,42626.0,42624.0,0.23317946]
[1704078397814,0.484206,42626.0,42624.0,0.23317946]
[1704078398047,0.484206,42626.0,42624.0,0.23317945]
[1704078398295,0.8468993,42625.0,42624.0,0.00747945]
[1704078398531,0.8468993,42625.0,42624.0,0.17049834]
[1704078399617,0.8538993,42625.0,42624.0,0.17049834]
[1704078400959,0.8588993,42625.0,42624.0,0.17049834]
[1704078405255,0.3896913,42625.0,42624.0,0.17049834]
[1704078405499,0.8588993,42625.0,42624.0,0.17049834]
[1704078413835,0.8588993,42625.0,42624.0,0.17049833]
[1704078415500,0.71442511,42625.0,42624.0,0.17049833]
[1704078421805,0.88728595,42625.0,42624.0,0.17049833]
[1704078422015,0.94361267,42625.0,42624.0,0.17049833]
[1704078422233,0.88728595,42625.0,42624.0,0.00747944]
[1704078422482,0.97136634,42625.0,42624.0,0.00037944]
[1704078422997,1.18728595,42625.0,42624.0,0.00037944]
[1704078423223,1.18028595,42625.0,42624.0,0.00037944]
[1704078423442,1.17528595,42625.0,42624.0,0.00037944]
[1704078423658,1.80595915,42625.0,42624.0,0.00037944]
[1704078423873,1.82185915,42625.0,42624.0,0.00037944]
[1704078424080,1.79385915,42625.0,42624.0,0.00037944]
[1704078424316,1.64771106,42625.0,42624.0,0.00037944]
[1704078424525,1.68171106,42625.0,42624.0,0.00037944]
[1704078424735,1.66571106,42625.0,42624.0,0.00037944]
[1704078424959,1.68171106,42625.0,42624.0,0.00037944]
[1704078425138,1.66571106,42625.0,42624.0,0.00037944]
[1704078425591,1.66371106,42625.0,42624.0,0.00037944]
[1704078426015,1.68171106,42625.0,42624.0,0.00037944]
[1704078426483,1.66371106,42625.0,42624.0,0.00037944]
[1704078426720,1.64771106,42625.0,42624.0,0.00037944]
[1704078426945,1.66571106,42625.0,42624.0,0.00037944]
[1704078427167,1.68271106,42625.0,42624.0,0.00037944]
[1704078427375,1.80543633,42625.0,42624.0,0.00037944]
[1704078427804,1.66471106,42625.0,42624.0,0.00037944]
[1704078428459,1.64771106,42625.0,42624.0,0.00037944]
[1704078428913,1.66571106,42625.0,42624.0,0.00037944]
[1704078429363,1.68271106,42625.0,42624.0,0.00037944]
[1704078429818,1.66471106,42625.0,42624.0,0.00037944]
[1704078430248,1.68271106,42625.0,42624.0,0.00037944]
[1704078430740,1.64771106,42625.0,42624.0,0.00037944]
[1704078430959,1.66571106,42625.0,42624.0,0.00037944]
[1704078432023,1.68371106,42625.0,42624.0,0.00037944]
[1704078435449,1.82432219,42625.0,42624.0,0.00037944]
[1704078435885,2.08194222,42625.0,42624.0,0.00037944]
[1704078436170,2.08194222,42625.0,42611.0,0.1]
[1704078436171,0.00031711,42619.0,42611.0,0.063336]
[1704078436388,0.00031711,42619.0,42613.0,0.063336]
[1704078436389,0.05625092,42615.0,42613.0,0.063336]
[1704078436643,0.23321711,42614.0,42613.0,0.063336]
[1704078437501,0.23321711,42614.0,42612.0,0.32198289]
[1704078437502,0.23321711,42614.0,42612.0,0.285636]
[1704078437983,0.23321711,42614.0,42612.0,0.2223]
[1704078438269,0.24421711,42614.0,42612.0,0.2223]
[1704078438499,0.23321711,42614.0,42613.0,0.063336]
[1704078438727,0.24421711,42614.0,42612.0,0.285636]
[1704078438961,0.46934,42613.0,42612.0,0.285636]
[1704078439184,0.70255711,42613.0,42612.0,0.285636]
[1704078439824,0.84525566,42613.0,42612.0,0.285636]
[1704078440242,0.84525566,42613.0,42612.0,0.38531889]
[1704078440474,0.85425566,42613.0,42612.0,0.38531889]
[1704078441435,0.86525566,42613.0,42612.0,0.38531889]
[1704078441919,0.84525566,42613.0,42612.0,0.38531889]
[1704078442156,0.86525566,42613.0,42612.0,0.38531889]
[1704078446119,0.86525566,42613.0,42612.0,0.2223]
[1704078449893,0.72255711,42613.0,42612.0,0.2223]
[1704078450322,0.71355711,42613.0,42612.0,0.2223]
[1704078450532,0.70255711,42613.0,42612.0,0.2223]
[1704078450742,0.71655711,42613.0,42612.0,0.2223]
[1704078450953,0.70255711,42613.0,42612.0,0.2223]
[1704078451156,0.71755711,42613.0,42612.0,0.2223]
[1704078451366,0.73155711,42613.0,42612.0,0.2223]
[1704078451803,0.71655711,42613.0,42612.0,0.2223]
[1704078452005,0.73155711,42613.0,42612.0,0.2223]
[1704078468738,0.78780803,42613.0,42612.0,0.2223]
[1704078468946,0.73155711,42613.0,42612.0,0.2223]
[1704078469175,0.73155711,42613.0,42612.0,0.48531889]
[1704078469176,0.029,42613.0,42612.0,0.48531889]
[1704078469386,0.029,42613.0,42612.0,0.54255889]
[1704078469619,0.029,42613.0,42612.0,0.54965889]
[1704078470085,0.015,42613.0,42612.0,0.54965889]
[1704078470561,0.003,42613.0,42612.0,0.54965889]
[1704078470771,0.3,42621.0,42619.0,0.063336]
[1704078470983,0.23321711,42620.0,42619.0,0.063336]
[1704078471199,0.53321711,42620.0,42619.0,0.276536]
[1704078472570,0.54121711,42620.0,42619.0,0.276536]
[1704078472782,0.55121711,42620.0,42619.0,0.276536]
[1704078473000,0.54321711,42620.0,42619.0,0.276536]
[1704078473218,0.54121711,42620.0,42619.0,0.276536]
[1704078473437,0.01,42620.0,42619.0,0.47621889]
[1704078473659,0.01,42620.0,42619.0,0.52919889]
[1704078473875,0.018,42620.0,42619.0,0.52919889]
[1704078474096,0.018,42620.0,42619.0,0.52679889]
[1704078474958,0.008,42620.0,42619.0,0.52679889]
[1704078475322,0.018,42620.0,42619.0,0.52679889]
[1704078475416,0.01,42620.0,42619.0,0.52679889]
[1704078475665,0.3,42626.0,42625.0,0.063336]
[1704078475948,0.70241411,42626.0,42625.0,0.063336]
[1704078476190,1.18266717,42626.0,42625.0,0.063336]
[1704078476883,1.19566717,42626.0,42625.0,0.063336]
[1704078477124,1.20666717,42626.0,42625.0,0.063336]
[1704078478505,0.0029,42625.0,42623.0,0.2068]
[1704078478719,0.469219,42624.0,42621.0,0.063336]
[1704078478932,0.469241,42622.0,42621.0,0.063336]
[1704078479156,1.00245811,42622.0,42621.0,0.063336]
[1704078479367,1.00245811,42622.0,42621.0,0.16301889]
[1704078480287,1.14737538,42622.0,42621.0,0.16301889]
[1704078480939,1.14737538,42622.0,42619.0,0.2116]
[1704078480940,1.19673235,42622.0,42619.0,0.274936]
[1704078481156,0.469263,42620.0,42619.0,0.063336]
[1704078481375,0.70248011,42620.0,42619.0,0.063336]
[1704078482286,0.70248011,42620.0,42618.0,0.0071]
[1704078482500,0.70249111,42619.0,42618.0,0.0071]
[1704078483137,0.85822201,42619.0,42618.0,0.0071]
[1704078483607,0.85822201,42619.0,42617.0,0.208]
[1704078483834,0.469285,42618.0,42617.0,0.208]
[1704078484071,0.469285,42618.0,42617.0,0.271336]
[1704078484072,0.70250211,42618.0,42617.0,0.271336]
[1704078484288,0.70250211,42618.0,42616.0,0.063336]
[1704078484507,0.70251311,42617.0,42616.0,0.063336]
[1704078485153,0.70251311,42617.0,42616.0,0.16301889]
[1704078485815,0.70251311,42617.0,42615.0,0.278636]
[1704078486030,0.23321711,42617.0,42616.0,0.16401889]
[1704078486455,0.71351311,42617.0,42616.0,0.16401889]
[1704078486663,0.70251311,42617.0,42616.0,0.16401889]
[1704078486889,0.70251311,42617.0,42616.0,0.064336]
[1704078487124,0.71151311,42617.0,42616.0,0.001]
[1704078487330,1.01151311,42617.0,42616.0,0.001]
[1704078487592,1.06776403,42617.0,42616.0,0.001]
[1704078487804,1.06776403,42617.0,42610.0,0.0071]
[1704078487805,1.1507466,42617.0,42611.0,0.2152]
[1704078488030,1.1507466,42617.0,42611.0,0.278536]
[1704078488031,0.469351,42612.0,42611.0,0.278536]
[1704078488240,0.70256811,42612.0,42611.0,0.37821889]
[1704078488456,0.70256811,42612.0,42611.0,0.2152]
[1704078488667,0.70256811,42612.0,42611.0,0.278536]
[1704078488846,0.70256811,42612.0,42611.0,0.2152]
[1704078489096,0.70256811,42612.0,42611.0,0.37821889]
[1704078489523,0.70456811,42612.0,42611.0,0.38531889]
[1704078489742,0.70656811,42612.0,42611.0,0.2152]
[1704078489956,0.71556811,42612.0,42611.0,0.2152]
[1704078490803,0.71156811,42612.0,42611.0,0.2152]
[1704078491448,0.72256811,42612.0,42611.0,0.2152]
[1704078492459,0.72256811,42612.0,42610.0,0.0071]
[1704078492667,0.469362,42611.0,42610.0,0.0071]
[1704078494986,0.479362,42611.0,42610.0,0.0071]
[1704078495194,0.487362,42611.0,42610.0,0.0071]
[1704078496083,0.72057911,42611.0,42609.0,0.2115]
[1704078496300,0.70259011,42610.0,42609.0,0.2186]
[1704078497833,0.70259011,42610.0,42609.0,0.0071]
[1704078498259,0.71059011,42610.0,42609.0,0.0071]
[1704078498432,0.71959011,42610.0,42609.0,0.0071]
[1704078498660,0.71059011,42610.0,42609.0,0.0071]
[1704078499103,0.71659011,42610.0,42609.0,0.0071]
[1704078499314,0.71659011,42610.0,42609.0,0.17011889]
[1704078499533,0.71659011,42610.0,42609.0,0.0071]
[1704078499961,0.70859011,42610.0,42609.0,0.0071]
[1704078500182,0.71959011,42610.0,42606.0,0.221]
[1704078500401,0.469406,42607.0,42606.0,0.221]
[1704078500648,0.469406,42607.0,42606.0,0.0071]
[1704078500649,0.70262311,42607.0,42606.0,0.0071]
[1704078500860,0.70262311,42607.0,42606.0,0.17011889]
[1704078501522,0.70262311,42607.0,42600.0,0.063336]
[1704078501523,0.77368542,42607.0,42600.0,0.063336]
[1704078501743,0.469439,42604.0,42602.0,0.063336]
[1704078501960,0.23321711,42603.0,42602.0,0.063336]
[1704078503106,0.23321711,42603.0,42602.0,0.070436]
[1704078503769,0.013,42607.0,42605.0,0.063336]
[1704078503981,0.23321711,42606.0,42605.0,0.063336]
[1704078505694,0.24221711,42606.0,42605.0,0.063336]
[1704078506608,0.25321711,42606.0,42605.0,0.063336]
[1704078506860,0.24421711,42606.0,42605.0,0.063336]
[1704078507048,0.23321711,42606.0,42605.0,0.063336]
[1704078507316,0.24421711,42606.0,42605.0,0.063336]
[1704078507523,0.24621711,42606.0,42605.0,0.063336]
[1704078507949,0.24221711,42606.0,42605.0,0.063336]
[1704078508181,0.23321711,42606.0,42605.0,0.063336]
[1704078508388,0.25621711,42606.0,42605.0,0.063336]
[1704078508812,0.24421711,42606.0,42605.0,0.063336]
[1704078509458,0.70263411,42606.0,42605.0,0.063336]
[1704078509882,0.71563411,42606.0,42605.0,0.063336]
[1704078510094,0.72663411,42606.0,42605.0,0.063336]
[1704078510307,0.70263411,42606.0,42605.0,0.063336]
[1704078510529,0.71163411,42606.0,42605.0,0.063336]
[1704078510720,0.72263411,42606.0,42605.0,0.063336]
[1704078511023,0.70263411,42606.0,42605.0,0.063336]
[1704078511453,0.71563411,42606.0,42605.0,0.063336]
[1704078511734,0.72663411,42606.0,42605.0,0.063336]
[1704078512000,0.013,42606.0,42605.0,0.26301889]
[1704078512663,0.3,42607.0,42605.0,0.26301889]
[1704078512900,0.3,42607.0,42606.0,0.26301889]
[1704078513797,0.313,42607.0,42606.0,0.16301889]
[1704078514008,0.324,42607.0,42606.0,0.063336]
[1704078514220,0.311,42607.0,42606.0,0.063336]
[1704078515596,0.324,42607.0,42606.0,0.063336]
[1704078517556,0.324,42607.0,42606.0,0.26301889]
[1704078519696,0.793406,42607.0,42606.0,0.26301889]
[1704078519803,0.793406,42607.0,42606.0,0.063336]
[1704078520016,0.793406,42607.0,42606.0,0.26301889]
[1704078520641,1.02662311,42607.0,42606.0,0.063336]
[1704078523774,1.02662311,42607.0,42604.0,0.3211]
[1704078523775,1.02662311,42607.0,42604.0,0.0071]
[1704078524013,0.23321711,42606.0,42604.0,0.0071]
[1704078524672,0.23321711,42606.0,42603.0,0.272236]
[1704078524915,0.469439,42604.0,42603.0,0.272236]
[1704078525132,0.70265611,42604.0,42603.0,0.2089]
[1704078525357,0.70265611,42604.0,42599.0,0.063336]
[1704078525584,0.70265611,42604.0,42598.0,0.16301889]
[1704078525585,0.469483,42600.0,42598.0,0.16301889]
[1704078525803,0.469498,42599.0,42598.0,0.17011889]
[1704078526011,0.53321711,42603.0,42601.0,0.16301889]
[1704078526296,0.469461,42602.0,42601.0,0.16301889]
[1704078526509,0.70267811,42602.0,42601.0,0.16301889]
[1704078527589,0.87973352,42602.0,42597.0,0.2226]
[1704078527805,0.23321711,42601.0,42597.0,0.39271889]
[1704078528457,0.23321711,42601.0,42598.0,0.0071]
[1704078528673,0.23321711,42601.0,42597.0,0.39271889]
[1704078528888,0.23321711,42601.0,42598.0,0.0071]
[1704078529097,0.24721711,42601.0,42598.0,0.0071]
[1704078529732,0.469497,42599.0,42598.0,0.0071]
[1704078529955,0.469497,42599.0,42597.0,0.39271889]
[1704078530386,0.469497,42599.0,42598.0,0.0071]
[1704078530608,0.012,42601.0,42599.0,0.063336]
[1704078530821,0.014,42601.0,42599.0,0.063336]
[1704078531028,0.469483,42600.0,42599.0,0.070436]
[1704078532558,0.482483,42600.0,42599.0,0.070436]
[1704078532982,0.71570011,42600.0,42599.0,0.070436]
[1704078533616,0.72670011,42600.0,42599.0,0.070436]
[1704078537050,0.72670011,42600.0,42599.0,0.27011889]
[1704078537051,0.024,42600.0,42599.0,0.27011889]
[1704078538102,0.011,42600.0,42599.0,0.27011889]
[1704078538999,0.022,42600.0,42599.0,0.27011889]
[1704078539212,0.011,42600.0,42599.0,0.27011889]
[1704078539629,0.02,42600.0,42599.0,0.27011889]
[1704078539843,0.011,42600.0,42599.0,0.27011889]
[1704078540054,0.3,42604.0,42603.0,0.16301889]
[1704078540284,0.53321711,42604.0,42603.0,0.16301889]
[1704078541131,0.54421711,42604.0,42603.0,0.16301889]
[1704078541605,1.01365611,42604.0,42603.0,0.16301889]
[1704078542676,1.02265611,42604.0,42603.0,0.16301889]
[1704078546758,0.55321711,42604.0,42603.0,0.16301889]
[1704078546954,1.07881939,42604.0,42603.0,0.16301889]
[1704078548363,1.15966867,42604.0,42603.0,0.16301889]
[1704078548557,1.21598625,42604.0,42602.0,0.16301889]
[1704078548785,0.75899169,42603.0,42601.0,0.2266]
[1704078548991,0.469461,42602.0,42601.0,0.2266]
[1704078549749,0.469461,42602.0,42601.0,0.48961889]
[1704078550085,0.469461,42602.0,42601.0,0.38961889]
[1704078550291,0.28953469,42603.0,42601.0,0.2266]
[1704078550498,0.475461,42602.0,42601.0,0.2266]
[1704078550693,0.483461,42602.0,42601.0,0.2266]
[1704078551211,0.475461,42602.0,42601.0,0.2266]
[1704078553013,0.483461,42602.0,42601.0,0.2266]
[1704078553437,0.53977858,42602.0,42601.0,0.2337]
[1704078555140,0.71667811,42602.0,42601.0,0.0071]
[1704078555354,0.77299569,42602.0,42600.0,0.0071]
[1704078555575,0.07031758,42602.0,42601.0,0.16301889]
[1704078555765,0.53977858,42602.0,42601.0,0.17011889]
[1704078556219,0.53177858,42602.0,42601.0,0.17011889]
[1704078556431,0.52577536,42602.0,42601.0,0.17011889]
[1704078556647,0.56770593,42602.0,42601.0,0.17011889]
[1704078556918,8.738e-05,42601.0,42597.0,0.063336]
[1704078557135,0.05631024,42598.0,42597.0,0.16301889]
[1704078557350,0.75903235,42598.0,42597.0,0.16301889]
[1704078557566,0.70272211,42598.0,42597.0,0.16301889]
[1704078557993,0.70272211,42598.0,42597.0,0.063336]
[1704078558439,0.70272211,42598.0,42596.0,0.16301889]
[1704078558440,0.23321711,42598.0,42596.0,0.16301889]
[1704078558661,0.70273311,42597.0,42596.0,0.16301889]
[1704078559747,0.70273311,42597.0,42596.0,0.16401889]
[1704078559748,0.78719847,42597.0,42596.0,0.16401889]
[1704078559961,0.78819847,42597.0,42596.0,0.16401889]
[1704078560388,0.70373311,42597.0,42596.0,0.16401889]
[1704078560603,0.7600473,42597.0,42596.0,0.16401889]
[1704078560855,0.76003911,42597.0,42596.0,0.16401889]
[1704078561491,0.76004108,42597.0,42596.0,0.16401889]
[1704078561909,0.29052508,42597.0,42596.0,0.16395608]
[1704078562368,0.23421711,42597.0,42596.0,0.17105608]
[1704078562577,0.70373311,42597.0,42596.0,0.17105608]
[1704078565004,0.70373311,42597.0,42596.0,0.16395608]
[1704078565836,0.70373311,42597.0,42596.0,0.17105608]
[1704078568256,0.001,42597.0,42596.0,0.17105608]
[1704078568495,0.001,42597.0,42596.0,0.49315608]
[1704078575228,0.70373311,42597.0,42596.0,0.49315608]
[1704078575439,0.001,42597.0,42596.0,0.49315608]
[1704078579898,0.001,42597.0,42596.0,0.39315608]
[1704078580136,0.470516,42597.0,42596.0,0.17105608]
[1704078582322,0.70373311,42597.0,42596.0,0.17105608]
[1704078583245,0.70273311,42597.0,42596.0,0.17005608]
[1704078583424,0.71073311,42597.0,42596.0,0.16295608]
[1704078583652,0.71373311,42597.0,42596.0,0.16295608]
[1704078584093,0.71173311,42597.0,42596.0,0.16295608]
[1704078584340,0.72273311,42597.0,42596.0,0.16295608]
[1704078585644,0.72273311,42597.0,42596.0,0.17005608]
[1704078585853,0.72273311,42597.0,42596.0,0.16295608]
[1704078587216,0.72273311,42597.0,42590.0,0.063336]
[1704078587217,0.83118108,42597.0,42590.0,0.063336]
[1704078587431,0.0562963,42595.0,42592.0,0.16295608]
[1704078587646,0.31766157,42596.0,42592.0,0.16295608]
[1704078587647,0.75906241,42594.0,42592.0,0.16295608]
[1704078587885,0.70277311,42594.0,42592.0,0.16295608]
[1704078588376,0.75906941,42594.0,42592.0,0.16295608]
[1704078588589,0.75906941,42594.0,42593.0,0.0071]
[1704078589019,0.70277311,42594.0,42593.0,0.0071]
[1704078589865,0.70777311,42594.0,42593.0,0.0071]
[1704078590692,0.71477311,42594.0,42593.0,0.0071]
[1704078594040,0.77106941,42594.0,42592.0,0.16295608]
[1704078594966,0.75906941,42594.0,42592.0,0.16295608]
[1704078595373,0.0562963,42593.0,42592.0,0.16295608]
[1704078595617,0.28951341,42593.0,42592.0,0.16295608]
[1704078596024,0.23321711,42593.0,42592.0,0.16295608]
[1704078596229,0.23321711,42593.0,42592.0,0.17005608]
[1704078596433,0.23621711,42593.0,42592.0,0.17005608]
[1704078596979,0.24121711,42593.0,42592.0,0.17005608]
[1704078598030,0.71077711,42593.0,42592.0,0.17005608]
[1704078600087,0.71077711,42593.0,42592.0,0.16295608]
[1704078600336,0.71077711,42593.0,42592.0,0.17005608]
[1704078601148,0.76707285,42593.0,42592.0,0.17005608]
[1704078601553,0.71077711,42593.0,42592.0,0.17005608]
[1704078602592,0.47756,42593.0,42592.0,0.27005608]
[1704078602813,0.008,42593.0,42592.0,0.27005608]
[1704078603892,0.008,42593.0,42592.0,0.17005608]
[1704078604100,0.008,42593.0,42592.0,0.27005608]
[1704078604268,0.008,42593.0,42592.0,0.17005608]
[1704078604671,0.24121711,42593.0,42592.0,0.17005608]
[1704078605550,0.71077711,42593.0,42592.0,0.17005608]
[1704078605913,0.76707285,42593.0,42592.0,0.17005608]
[1704078606260,0.71077711,42593.0,42592.0,0.17005608]
[1704078606554,0.76707285,42593.0,42592.0,0.17005608]
[1704078607122,0.71077711,42593.0,42592.0,0.17005608]
[1704078610945,0.008,42593.0,42592.0,0.27005608]
[1704078642337,0.47756,42593.0,42592.0,0.27005608]
[1704078648042,0.53385574,42593.0,42592.0,0.27005608]
[1704078648256,0.47756,42593.0,42592.0,0.27005608]
[1704078652007,0.53385574,42593.0,42592.0,0.27005608]
[1704078652210,0.008,42593.0,42592.0,0.27005608]